Cogmind - Beta 15 @@@ ROGUE MODE // 2025.09.20 @ 22:27:33 Player: Petvaria Result: Destroyed by G-34 Mercenary with Small Laser Performance ------------- Evolutions (1) 500 Regions Visited (2) 400 Robots Destroyed (38) 190 Value Destroyed (824) 824 Prototype IDs (0) 0 Alien Tech Used (0) 0 Bonus (0) 0 TOTAL SCORE: 1914 Bonus ------- None Cogmind --------- Core Integrity 0/400 Matter 285/300 Energy 100/100 System Corruption 0% Temperature Cool (15) Movement Core (350) Ox6 Location -9/Materials Parts ------- > --- POWER (1) -------- (None) > --- PROPULSION (3) --- (None) > --- UTILITY (3) ------ Large Storage Unit > --- WEAPON (2) ------- (None) > --- INVENTORY (15) --- Ion Engine Light Treads Light Treads Advanced Treads Flight Unit Flight Unit Medium Storage Unit Propulsion Shielding Light Armor Plating Hacking Suite Hacking Suite Light EM Pulse Cannon Peak State ------------ > --- POWER ------------ Light Ion Engine > --- PROPULSION ------- Advanced Treads Advanced Treads Advanced Treads > --- UTILITY ---------- Small Storage Unit Medium Storage Unit Light Armor Plating > --- WEAPON ----------- Medium Laser Light Assault Rifle > --- INVENTORY -------- Ion Engine Light Treads Advanced Treads Propulsion Shielding Hacking Suite Hacking Suite Light Assault Rifle Light Assault Rifle [Rating: 16] Favorites ----------- Power Light Ion Engine Engine Light Ion Engine Propulsion Light Treads Treads Light Treads Utility Small Storage Unit Storage Small Storage Unit Protection Light Armor Plating Weapon Light Assault Rifle Energy Gun Medium Laser Energy Cannon Light EM Pulse Cannon Ballistic Gun Light Assault Rifle Build | -11 -10 -9 ------- Run | Yrd Mat Mat Slots Evolved 2 | . . 2 Power . | . . . Propulsion 1 | . . 1 Utility 1 | . . 1 Weapon . | . . . Parts Attached 23 | 6 8 9 Power 1 | 1 . . Engine 1 | 1 . . Core . | . . . Reactor . | . . . Propulsion 10 | 2 4 4 Treads 10 | 2 4 4 Leg . | . . . Wheel . | . . . Hover . | . . . Flight . | . . . Utility 5 | 1 2 2 Device . | . . . Storage 3 | 1 . 2 Processor . | . . . Hackware . | . . . Protection 2 | . 2 . Artifact . | . . . Weapon 7 | 2 2 3 Energy Gun 1 | . 1 . Energy Cannon 1 | . . 1 Ballistic Gun 5 | 2 1 2 Ballistic Cannon . | . . . Launcher . | . . . Special Weapon . | . . . Impact Weapon . | . . . Slashing Weapon . | . . . Piercing Weapon . | . . . Special Melee Weapon . | . . . Unidentified Prototypes . | . . . Parts Lost 10 | . 1 9 Power 1 | . . 1 Propulsion 3 | . . 3 Utility 1 | . . 1 Weapon 5 | . 1 4 Highest Loss Streak 6 | . 1 6 To Critical Strikes 1 | . 1 . Average Backups 8 | 3 7 10 Power . | . 1 1 Propulsion 3 | 1 3 3 Utility 2 | . 1 4 Weapon 1 | . 1 1 Tool/Special . | . . . Unused Backups 12 | . 4 8 Power 1 | . . 1 Propulsion 8 | . 4 4 Utility 3 | . . 3 Weapon . | . . . Tool/Special . | . . . Average Slot Usage (%) 86 | . 94 76 Engine 12 | . 14 10 Treads 29 | . 27 32 Storage 12 | . 14 11 Protection 6 | . 9 3 Energy Gun 8 | . 9 6 Ballistic Gun 15 | . 18 11 Peak Build Rating 16 | 6 8 16 Average Rating 9 | 4 7 13 On Entrance 4 | . 6 8 Naked Turns . | . . . Heaviest Build 29 | 10 14 29 Greatest Support 66 | 40 40 66 Greatest Overweight (x) 6 | . 4 6 Average Overweight (x) . | . . . Largest Inventory Capacity 15 | 8 8 15 Average Capacity 10 | 6 8 14 Most Carried 13 | 6 8 13 Average Carried 8 | 3 7 10 Final Capacity 15 | 8 8 15 Final Carried 12 | 6 8 12 Class Distribution -------------------- 100% | Mutant Dominant Class ---------------- Mutant | -10/Materials Mutant | -9/Materials Resources | -11 -10 -9 ----------- Run | Yrd Mat Mat Matter Collected 594 | 239 209 146 Remotely . | . . . Salvage Created 1122 | . 524 598 Parts 81 | . 40 41 Haulers Intercepted 1 | . 1 . Recyclers Shooed 10 | . 4 6 Parts Field Recycled . | . . . Retrieved Matter . | . . . Parts Self-Destructed . | . . . Prevented . | . . . Kills | -11 -10 -9 ------- Run | Yrd Mat Mat Combat Hostiles Destroyed 30 | . 12 18 Guns 29 | . 12 17 Cannons 1 | . . 1 Classes Destroyed 8 | . 5 3 Worker 1 | . . 1 Hauler 1 | . 1 . Recycler 2 | . 2 . Operator 4 | . 2 2 Swarmer 13 | . 6 7 Grunt 15 | . 6 9 Duelist 1 | . . 1 Sentry 1 | . . 1 Best Kill Streak 9 | . 7 9 Combat Bots Only 9 | . 6 9 Max Kills in Single Turn 1 | . 1 1 Gunslinging . | . . . Exploded . | . . . Melee . | . . . Uniques/NPCs Destroyed . | . . . Combat | -11 -10 -9 -------- Run | Yrd Mat Mat Hostile Shots Fired 237 | . 67 170 Missed 61 | . 13 48 Hits 176 | . 54 122 Melee 1 | . . 1 Projectile 175 | . 54 121 Critical Strikes 3 | . 1 2 Damage Taken 1936 | . 566 1370 Core 509 | . 106 403 Absorbed by Shields . | . . . Core Remaining (%) 78 | 100 57 . Volleys Fired 164 | . 62 102 Largest 2 | . 2 2 Hottest 76 | . 70 76 Shots Fired 288 | . 123 165 Gun 284 | . 123 161 Cannon 4 | . . 4 Launcher . | . . . Special . | . . . Kinetic 209 | . 93 116 Thermal 75 | . 30 45 Explosive . | . . . Electromagnetic 4 | . . 4 Robot Hit Streak 20 | . 20 12 Robot Miss Streak 6 | . 5 6 Penetration Max . | . . . Secondary Targets 7 | . 4 3 Max Gunslinging Chain 1 | . 1 1 Shots Hit Robots 187 | . 83 104 Core Hits 79 | . 36 43 Critical Kills 1 | . . 1 Critical Parts Destroyed 1 | . 1 . Critical Strikes 9 | . 5 4 Burn 7 | . 4 3 Destroy 2 | . 1 1 Melee Attacks . | . . . Impact . | . . . Slashing . | . . . Piercing . | . . . Sneak Attacks . | . . . Combat Hostiles . | . . . Follow-up Attacks . | . . . Damage Inflicted 1860 | . 787 1073 Guns 1763 | . 787 976 Cannons 97 | . . 97 Explosions . | . . . Melee . | . . . Ramming . | . . . Kinetic 1114 | . 501 613 Thermal 649 | . 286 363 Explosive . | . . . Electromagnetic 97 | . . 97 Impact . | . . . Slashing . | . . . Piercing . | . . . Highest Corruption . | . . . Average Corruption . | . . . Corruption Purged . | . . . Corruption Blocked . | . . . Overload Shots . | . . . Overflow Damage . | . . . Projectiles . | . . . Explosions . | . . . Melee . | . . . Knockbacks . | . . . Impact . | . . . Kinetic . | . . . Secondary . | . . . Self-Inflicted Damage . | . . . Shots . | . . . Rammed . | . . . Targets Rammed . | . . . Kicked . | . . . Crushed . | . . . Highest Temperature 240 | . 240 233 Average Temperature 79 | . 66 90 Received Heat Transfer 705 | . 243 462 Siege Activations . | . . . Martial Activations . | . . . Shielding Activations . | . . . Robots Disrupted . | . . . Combat Hostiles . | . . . Robots Corrupted . | . . . Combat Hostiles . | . . . Parts Fried 1 | . . 1 Impact Corruptions . | . . . Robots Melted . | . . . Combat Hostiles . | . . . Parts Melted 5 | . 1 4 Heat Transferred 2442 | . 1147 1295 Parts Sabotaged . | . . . Parts Stolen . | . . . Parts Stripped . | . . . Power Chain Reactions . | . . . Alert | -11 -10 -9 ------- Run | Yrd Mat Mat Maximum Alert Level 1 | . . 1 Low Security (%) 93 | 100 100 83 Level 1 6 | . . 16 Level 2 . | . . . Level 3 . | . . . Level 4 . | . . . Level 5 . | . . . High Security . | . . . Max Security . | . . . Peak Influence 230 | . 140 230 Initial 25 | . . 25 Average 81 | . 71 111 Influence Increases 786 | . 351 435 Destroy 0b10 Robot/C 600 | . 240 360 Destroy 0b10 Robot/NC 40 | . 25 15 Destroy Leader 102 | . 42 60 Successful Hack 14 | . 14 . Lose Combat Pursuer 30 | . 30 . Influence Decreases 633 | . 291 342 Entered New Map 35 | . . 35 Time Decay 498 | . 281 217 Lost Part 100 | . 10 90 Squads Dispatched 5 | . 2 3 Investigation . | . . . Extermination . | . . . Reinforcement 5 | . 2 3 Assault . | . . . Garrison . | . . . Intercept . | . . . Searches Triggered . | . . . Construction Impeded . | . . . Haulers Reinforced . | . . . Active Scanning Responses . | . . . Cargo Convoy Interrupts . | . . . Stealth | -11 -10 -9 --------- Run | Yrd Mat Mat Distress Signals 5 | . 2 3 Communications Jammed . | . . . Distress Signals . | . . . Times Spotted 54 | . 24 30 Peak Tracking Total 10 | . 4 10 Tactical Retreats 1 | . 1 . Traps | -11 -10 -9 ------- Run | Yrd Mat Mat Traps Triggered 1 | . 1 . Indirectly . | . . . Trap Hack Attempts . | . . . Triggered . | . . . Disarmed . | . . . Reprogrammed . | . . . Reused . | . . . Traps Extracted . | . . . Installed . | . . . Triggered . | . . . Machines | -11 -10 -9 ---------- Run | Yrd Mat Mat Machines Disabled . | . . . Max in Single Turn . | . . . Machines Repaired . | . . . Machines Dismantled . | . . . Machines Sabotaged . | . . . Overloaded Fab Kills . | . . . Hacking | -11 -10 -9 --------- Run | Yrd Mat Mat Machines Accessed 4 | . 2 2 Terminals 4 | . 2 2 Fabricators . | . . . Repair Stations . | . . . Recycling Units . | . . . Scanalyzers . | . . . Garrison Access . | . . . Total Hacks 10 | . 7 3 Successful 4 | . 3 1 Failed 6 | . 4 2 Catastrophic 1 | . . 1 Database Lockouts . | . . . Manual 8 | . 5 3 Terminals 10 | . 7 3 Fabricators . | . . . Repair Stations . | . . . Recycling Units . | . . . Scanalyzers . | . . . Garrison Access . | . . . Terminal Hacks 2 | . 2 . Hauler Manifests 1 | . 1 . Registered Components 1 | . 1 . Fabricator Hacks . | . . . Repair Station Hacks . | . . . Recycling Unit Hacks . | . . . Scanalyzer . | . . . Garrison Access Hacks . | . . . Unauthorized Hacks 2 | . 1 1 Terminals 2 | . 1 1 Operators 2 | . 1 1 Fabricators . | . . . Repair Stations . | . . . Recycling Units . | . . . Scanalyzers . | . . . Garrison Access . | . . . Data Cores Recovered . | . . . Used . | . . . Hacking Detections 3 | . 1 2 Full Trace Events 1 | . 1 . Feedback Events . | . . . Feedback Blocked . | . . . Robot Schematics Acquired . | . . . Robots Built . | . . . Authchips . | . . . Time . | . . . Total Robot Build Rating . | . . . Part Schematics Acquired . | . . . Parts Built . | . . . Authchips . | . . . Time . | . . . Total Part Build Rating . | . . . Parts Repaired . | . . . Time . | . . . Parts Recycled . | . . . Recycled Matter . | . . . Retrieved Matter . | . . . Retrieved Components . | . . . Parts Scanalyzed . | . . . Part Schematics Acquired . | . . . Parts Damaged . | . . . Bothacking | -11 -10 -9 ------------ Run | Yrd Mat Mat Used RIF Installer . | . . . Robots Hacked . | . . . Non-combat . | . . . Combat . | . . . Robot Hacks Applied . | . . . Relay Couplers Released . | . . . Fabnet Peak Effective % . | . . . Robots Rewired . | . . . Allies Hacked . | . . . Hacks Repelled . | . . . Allies | -11 -10 -9 -------- Run | Yrd Mat Mat Total Allies . | . . . Largest Group . | . . . Highest-Rated Group . | . . . Highest-Rated Ally . | . . . Total Orders . | . . . Ally Attacks . | . . . Total Damage . | . . . Kills . | . . . Allies Corrupted . | . . . Allies Melted . | . . . Intel | -11 -10 -9 ------- Run | Yrd Mat Mat Active Infowar (turns) . | . . . Robot Analysis Total . | . . . Derelict Logs Recovered . | . . . Drone Launches . | . . . Drone Recoveries . | . . . Exploration | -11 -10 -9 ------------- Run | Yrd Mat Mat Turns Passed 1428 | 128 731 569 Spaces Moved 587 | 74 311 202 Core 10 | 7 1 2 Treads 577 | 67 310 200 Legs . | . . . Wheels . | . . . Hover . | . . . Flight . | . . . Fastest Speed 50 | 50 160 145 Average Speed 154 | 149 160 147 Slowest Speed 350 | 160 250 350 Overloaded Moves . | . . . Propulsion Burnouts . | . . . Robots Hopped . | . . . Potential Cave-ins . | . . . Cave-ins Triggered . | . . . Exploration Rate (%) 27 | 5 47 29 Regions Visited 2 Branch Regions . Pre-discovered Areas . | . . . Known Exits Taken . | . . . Unknown Exits Taken 2 | 1 1 . Scrap Searched . | . . . Spaces Dug . | . . . Terrain Destroyed . | . . . Melee . | . . . Projectile . | . . . AOE . | . . . Terrain Rammed . | . . . Walls Destroyed . | . . . Machines Disabled . | . . . Actions | -11 -10 -9 --------- Run | Yrd Mat Mat Total 865 | 91 441 333 Wait 49 | . 42 7 Move 585 | 73 310 202 Hop . | . . . Pick Up 28 | 12 8 8 Fast Attach 5 | . 4 1 Attach 11 | 6 2 3 Detach 1 | . 1 . Swap 9 | . 4 5 Drop 13 | . 8 5 Fire 164 | . 62 102 Melee . | . . . Ram . | . . . Kick . | . . . Crush . | . . . Escape Stasis . | . . . Rewire . | . . . Trap . | . . . Miscellaneous . | . . . Route ------- -11/Scrapyard -10/Materials (discovered 3 exits: *Mat x2 / [*Min]) -9/Materials (discovered 1 exit: [*Sto]) History --------- Turn | Location | Event 5 | -11/Scrapyard | Discovered new exit (range 15) 129 | -11/Scrapyard | Entered Materials 259 | -10/Materials | Discovered new exit (range 15) 300 | -10/Materials | Build established: Mutant 438 | -10/Materials | Discovered new exit (range 12) 445 | -10/Materials | Discovered new exit (range 15) 860 | -10/Materials | Entered another Materials area 860 | -9/Materials | Evolved 2 slots: Propulsion x1, Utility x1 1094 | -9/Materials | Destroyed 7 combat bots 1256 | -9/Materials | Discovered new exit (range 7) 1260 | -9/Materials | Destroyed 9 combat bots 1408 | -9/Materials | Core integrity fell below 50% 1425 | -9/Materials | Core integrity fell below 20% 1429 | -9/Materials | Destroyed by G-34 Mercenary with Small Laser Last Messages --------------- O-16 Technician: "IFF HANDSHAKE FAILED. SECURING TERMINAL." ALERT: Hostiles spotted, dispatching reinforcements to Terminal M003. ALERT: Hostiles spotted, dispatching reinforcements to Terminal M006. O-16 Technician destroyed. Acquired Lgt. EM Pulse Cannon. Lgt. Ion Engine destroyed. Sml. Laser fried. G-34 Mercenary destroyed. Adv. Treads destroyed. Processing Tank disabled. Adv. Treads destroyed. G-34 Mercenary destroyed. Adv. Treads destroyed. R-06 Scavenger collects Corrupted Aluminum Leg. R-06 Scavenger collects Sml. Laser. Lgt. Assault Rifle destroyed. Lgt. EM Pulse Cannon destroyed. Map ----- +----------------------------------------------------+ | ???????????# #???????? ????????????# #???????????? | | # ????# ??# #???????? ????????????# #???????????? | | / ???# ??# #???????? ????????????# #???????????? | | ?# ??# #?# #???????? ????????????# #???????????? | | ?# ### ### #????????????????????## ###?????????? | | ?# #????????????????????# #??#??????? | | ?# ##???????????????????# #? #??????? | | + """ "#???????????######### #? #??????? | | ?# """ T#???????????# ## #? #??????? | | ?# """ "#???????????# ## ## #??????? | | ?# ##???????????# " # #??????? | | ?# #????????????# T # #??????? | | ?# """ #????????????# " + #??????? | | ?# """ #????????????# # #??????? | | ?# """ #????????????######## #??????? | | ?# #???????????????????# #??????? | | ?# #???????????????????# #??????? | | ?# ####???????????????????# ##?????? | | ?# # ###????????????########## #?????? | | ## # #?????????+ +?????? | | # #! !#???????????########## #?????? | | # ##! !!##??????????## T # #?????? | | # #######???????????# # " #?????? | | # #??????????????????#Y # "" !+?????? | | # #??????????????????#[|| """ # "" #?????? | | # #??????????????????#@| "" + """o #?????? | | # #??########????????#|| ""r# "" #?????? | | + #? ! #????????# = """ # """ ????? | | # #? #????????# g%g""" # """ ????? | | ## # #????????# # """ ???? | | # #????????########## " ? ##???? | | / """ ""????????????????????# ??#????? | | # """ ""????????????????????# ???????? | | # """ ""????????????????????# ??????? | | #? ????????????????????# ?????? | | #?######????????????????????# +????? | | ## #???????????????????????????? #????? | | ?# #???????????????????????????? ??????? | | ?# #???????????????????????????? ? ????????? | | ?# #???????????????????????????? ????????????? | | ?#####???????????????????????????????????????????? | | ?????????????????????????????????????????????????? | | ?????????????????????????????????????????????????? | | ?????????????????????????????????????????????????? | | ?????????????????????????????????????????????????? | | ?????????????????????????????????????????????????? | | ?????????????????????????????????????????????????? | | ?????????????????????????????????????????????????? | | ?????????????????????????????????????????????????? | | ?????????????????????????????????????????????????? | +----------------------------------------------------+ Best States ------------- Heat Dissipation 28 Energy Generation 10 Energy Capacity 125 Matter Stores 300 Matter Capacity 300 Sight Range 16 Terrain Scan Density 10 Armor Coverage 150 Propulsion Shielding 33 Evasion (%) 40 Recoil Reduction 3 Item Schematics ----------------- None Robot Schematics ------------------ None Fabricated ------------ Nothing Repaired ---------- Nothing Alien Tech Used ----------------- None Achievements -------------- None Challenges ------------ None Game ------ Seed AmuletTechLink Manual? 1 Play Time 00:09:54 Cumulative 244.0 hours Start 2025.09.20 @ 22:08:44 End 2025.09.20 @ 22:27:33 Sessions 1 Manual Loads 0 Difficulty Rogue Special Mode None Game No. 219 Rogue 219 Adventurer 0 Explorer 0 Win Type - Total 14 Types 8/0/2/2/1/0/0/0/0/1 Lore% 93 Gallery% 86 Achievement% 75 Wizard Run 0 Options --------- Layout 1 ASCII 0 Keyboard 0 Movement Numpad Keybinds 0 Fullscreen 1 Font 24/Proggy Map View 50x35 Zoom Use 0% Tactical HUD 0 Map Filters NONE Filters NONE Steam 1 RUN: 09d231c4-4fa2-40ba-bd66-1fde24af4143